Cogmind - Beta 14 @@@ ROGUE MODE // 2024.11.24 @ 21:08:28 Player: naththebg Result: Destroyed by Y-54 Guardian with Flak Gun Performance ------------- Evolutions (0) 0 Regions Visited (4) 800 Robots Destroyed (39) 195 Value Destroyed (777) 777 Prototype IDs (5) 100 Alien Tech Used (0) 0 Bonus (0) 0 TOTAL SCORE: 1872 Bonus ------- None Cogmind --------- Core Integrity 0/250 Matter 280/300 Energy 150/150 System Corruption 0% Temperature Cool (6) Movement Rolling (130) Ox2 Location -7/Recycling Parts ------- > --- POWER (1) -------- Light Angular Momentum Engine > --- PROPULSION (2) --- Compact Wheel Subdweller Monowheel > --- UTILITY (2) ------ Improved Heat Sink Large Storage Unit > --- WEAPON (2) ------- Medium Laser Makeshift Laser > --- INVENTORY (15) --- Light Ion Engine Subdweller Power Source Light Treads Subdweller Monowheel Medium Matter Pod (100) Particle Gun Assault Rifle Assault Rifle Subdweller Machine Gun Light Cannon Battle Cannon Rocket Launcher Rocket Launcher Subdweller Shrapnel Launcher Peak State ------------ > --- POWER ------------ Light Angular Momentum Engine > --- PROPULSION ------- Light Treads Wheel > --- UTILITY ---------- Large Storage Unit Experimental Sensor Array > --- WEAPON ----------- Battle Cannon Rocket Launcher > --- INVENTORY -------- Light Ion Engine Improved Heat Sink Medium Matter Pod Medium Laser Particle Gun Makeshift Laser Assault Rifle Assault Rifle Light Assault Rifle Light Cannon Rocket Launcher Rocket Launcher [Rating: 23] Favorites ----------- Power Light Angular Momentum Engine Engine Light Angular Momentum Engine Power Core Light Nuclear Core Propulsion Light Treads Treads Light Treads Wheel Subdweller Monowheel Utility Weapon Shielding Device Improved Heat Sink Storage Large Storage Unit Protection Weapon Shielding Weapon Rocket Launcher Energy Gun Medium Laser Ballistic Gun Assault Rifle Ballistic Cannon Battle Cannon Launcher Rocket Launcher Special Weapon Flamer Build | -11 -10 -10 -10 -7 ------- Run | Yrd Mat Min Sub Rec Slots Evolved . | . . . . . Power . | . . . . . Propulsion . | . . . . . Utility . | . . . . . Weapon . | . . . . . Parts Attached 36 | 6 7 4 15 4 Power 4 | 1 1 2 . . Engine 3 | 1 . 2 . . Core 1 | . 1 . . . Reactor . | . . . . . Propulsion 8 | 2 1 . 4 1 Treads 3 | 2 1 . . . Leg . | . . . . . Wheel 5 | . . . 4 1 Hover . | . . . . . Flight . | . . . . . Utility 5 | 1 1 1 1 1 Device 2 | . . . 1 1 Storage 2 | 1 . 1 . . Processor . | . . . . . Hackware . | . . . . . Protection 1 | . 1 . . . Artifact . | . . . . . Weapon 19 | 2 4 1 10 2 Energy Gun 4 | 1 1 . . 2 Energy Cannon . | . . . . . Ballistic Gun 2 | 1 1 . . . Ballistic Cannon 4 | . . . 4 . Launcher 8 | . 2 1 5 . Special Weapon 1 | . . . 1 . Impact Weapon . | . . . . . Slashing Weapon . | . . . . . Piercing Weapon . | . . . . . Special Melee Weapon . | . . . . . Unidentified Prototypes 1 | . . . 1 . Parts Lost 7 | . 1 . 6 . Power . | . . . . . Propulsion 2 | . 1 . 1 . Utility 2 | . . . 2 . Weapon 3 | . . . 3 . Highest Loss Streak 6 | . 1 . 6 . To Critical Strikes . | . . . . . Average Slot Usage (%) 94 | . 97 100 88 85 Engine 12 | . 9 13 14 14 Core 1 | . 4 . . . Treads 20 | . 27 28 11 . Wheel 7 | . . . 15 28 Storage 14 | . 14 14 14 14 Protection 9 | . 11 14 4 . Energy Gun 7 | . 13 . . 22 Ballistic Gun 4 | . 13 . . . Launcher 15 | . 1 28 24 5 Peak Build Rating 23 | 6 12 15 23 19 Average Rating 11 | 5 8 12 15 16 On Entrance 9 | . 6 12 15 16 Naked Turns . | . . . . . Heaviest Build 41 | 14 19 38 41 37 Greatest Support 40 | 40 40 40 40 36 Greatest Overweight (x) 3 | . . . 3 2 Average Overweight (x) . | . . . . . Largest Inventory Capacity 15 | 8 8 15 15 15 Average Capacity 12 | 7 8 14 15 15 Most Carried 15 | 6 8 13 15 15 Average Carried 10 | 3 7 10 14 14 Final Capacity 15 | 8 8 15 15 15 Final Carried 15 | 6 8 13 15 14 Class Distribution -------------------- 82% | Mutant 17% | Derelict-Mutant Dominant Class ---------------- Mutant | -10/Materials Mutant | -10/Mines Mutant | -10/Subcaves Derelict-Mutant | -7/Recycling Resources | -11 -10 -10 -10 -7 ----------- Run | Yrd Mat Min Sub Rec Matter Collected 1016 | 263 165 107 249 232 Remotely . | . . . . . Salvage Created 852 | 75 411 20 82 264 Parts 66 | 1 29 15 11 10 Haulers Intercepted . | . . . . . Recyclers Shooed 3 | . 1 . . 2 Parts Field Recycled . | . . . . . Retrieved Matter . | . . . . . Parts Self-Destructed 7 | . . . 7 . Prevented . | . . . . . Kills | -11 -10 -10 -10 -7 ------- Run | Yrd Mat Min Sub Rec Combat Hostiles Destroyed 26 | . 8 9 9 . Melee 1 | . . 1 . . Guns 6 | . 6 . . . Cannons 1 | . . . 1 . AOE 18 | . 2 8 8 . Classes Destroyed 9 | 1 4 2 2 . Worker 2 | . 2 . . . Builder 1 | . 1 . . . Tunneler 1 | . . 1 . . Recycler 5 | 1 . . . 4 Turret 2 | . . . 2 . Watcher 2 | . 2 . . . Swarmer 13 | . . 9 4 . Grunt 8 | . 8 . . . Subdweller 5 | . . . 5 . Best Kill Streak 6 | 1 5 3 6 3 Combat Bots Only 4 | . 3 3 4 . Max Kills in Single Turn 5 | 1 5 3 3 1 Gunslinging . | . . . . . Exploded 3 | . 2 3 2 . Melee 1 | . . 1 . . Uniques/NPCs Destroyed . | . . . . . Combat | -11 -10 -10 -10 -7 -------- Run | Yrd Mat Min Sub Rec Hostile Shots Fired 110 | . 34 7 42 27 Missed 43 | . 6 2 16 19 Damage Taken 1101 | . 352 143 544 62 Core 252 | . 35 46 138 33 Absorbed by Shields . | . . . . . Redirected to Shielding 50 | . 21 10 19 . Core Remaining (%) 100 | 100 . . . . Volleys Fired 66 | 1 27 8 17 13 Largest 2 | 2 2 1 2 2 Hottest 100 | 70 85 33 74 100 Shots Fired 119 | 2 54 8 29 26 Gun 80 | 2 52 . . 26 Cannon 4 | . . . 4 . Launcher 35 | . 2 8 25 . Special . | . . . . . Kinetic 34 | 1 26 . 7 . Thermal 53 | 1 26 . . 26 Explosive 32 | . 2 8 22 . Electromagnetic . | . . . . . Robot Hit Streak 15 | 2 12 7 15 5 Robot Miss Streak 3 | . 3 1 2 2 Penetration Max . | . . . . . Secondary Targets 1 | . 1 . . . Max Gunslinging Chain 1 | . 1 . . . Shots Hit Robots 74 | 2 36 2 16 18 Core Hits 60 | 2 24 9 20 5 Critical Kills . | . . . . . Critical Parts Destroyed 1 | . 1 . . . Critical Strikes 7 | . 3 . . 4 Burn 6 | . 2 . . 4 Destroy 1 | . 1 . . . Melee Attacks . | . . . . . Impact . | . . . . . Slashing . | . . . . . Piercing . | . . . . . Sneak Attacks . | . . . . . Combat Hostiles . | . . . . . Follow-up Attacks . | . . . . . Damage Inflicted 3005 | 24 701 648 1354 278 Guns 744 | 24 442 . . 278 Cannons 15 | . . . 15 . Explosions 2225 | . 259 627 1339 . Melee . | . . . . . Ramming 21 | . . 21 . . Kinetic 325 | 11 191 . 123 . Thermal 542 | 13 251 . . 278 Explosive 2117 | . 259 627 1231 . Electromagnetic . | . . . . . Impact . | . . . . . Slashing . | . . . . . Piercing . | . . . . . Highest Corruption . | . . . . . Average Corruption . | . . . . . Corruption Purged . | . . . . . Corruption Blocked . | . . . . . Overload Shots . | . . . . . Overflow Damage 118 | . 19 41 58 . Projectiles . | . . . . . Explosions 118 | . 19 41 58 . Melee . | . . . . . Knockbacks . | . . . . . Impact . | . . . . . Kinetic . | . . . . . Secondary . | . . . . . Self-Inflicted Damage 312 | . . 109 203 . Shots 11 | . . 3 8 . Rammed 3 | . . 3 . . Targets Rammed 4 | . . 4 . . Kicked . | . . . . . Crushed 1 | . . 1 . . Highest Temperature 216 | 9 207 . . 216 Average Temperature 68 | 6 65 . . 75 Received Heat Transfer 321 | . 219 . 78 24 Siege Activations . | . . . . . Robots Corrupted . | . . . . . Combat Hostiles . | . . . . . Parts Fried . | . . . . . Impact Corruptions . | . . . . . Robots Melted . | . . . . . Combat Hostiles . | . . . . . Parts Melted 3 | . 2 . 1 . Heat Transferred 1887 | 37 888 . . 962 Parts Sabotaged . | . . . . . Parts Stolen . | . . . . . Parts Stripped . | . . . . . Power Chain Reactions . | . . . . . Alert | -11 -10 -10 -10 -7 ------- Run | Yrd Mat Min Sub Rec Peak Influence 319 | 5 158 319 . 124 Initial 51 | . 3 51 . . Average 104 | 2 55 176 . 80 Maximum Alert Level 1 | . . 1 . . Low Security (%) 81 | 100 100 52 . 100 Level 1 18 | . . 47 . . Level 2 . | . . . . . Level 3 . | . . . . . Level 4 . | . . . . . Level 5 . | . . . . . High Security . | . . . . . Max Security . | . . . . . Squads Dispatched . | . . . . . Investigation . | . . . . . Extermination . | . . . . . Reinforcement . | . . . . . Assault . | . . . . . Garrison . | . . . . . Intercept . | . . . . . Searches Triggered . | . . . . . Construction Impeded . | . . . . . Haulers Reinforced . | . . . . . Active Scanning Responses . | . . . . . Cargo Convoy Interrupts . | . . . . . Stealth | -11 -10 -10 -10 -7 --------- Run | Yrd Mat Min Sub Rec Distress Signals 2 | . 1 . . 1 Communications Jammed . | . . . . . Distress Signals . | . . . . . Times Spotted 34 | . 13 9 11 1 Peak Tracking Total 6 | . 5 3 6 1 Tactical Retreats 2 | . 2 . . . Traps | -11 -10 -10 -10 -7 ------- Run | Yrd Mat Min Sub Rec Traps Triggered . | . . . . . Indirectly . | . . . . . Trap Hack Attempts . | . . . . . Triggered . | . . . . . Disarmed . | . . . . . Reprogrammed . | . . . . . Reused . | . . . . . Traps Extracted . | . . . . . Installed . | . . . . . Triggered . | . . . . . Machines | -11 -10 -10 -10 -7 ---------- Run | Yrd Mat Min Sub Rec Machines Disabled 6 | . 2 1 3 . Max in Single Turn 3 | . 2 1 3 . Machines Repaired . | . . . . . Machines Dismantled . | . . . . . Machines Sabotaged . | . . . . . Overloaded Fab Kills . | . . . . . Hacking | -11 -10 -10 -10 -7 --------- Run | Yrd Mat Min Sub Rec Machines Accessed 9 | . 3 1 . 5 Terminals 5 | . 3 . . 2 Fabricators . | . . . . . Repair Stations . | . . . . . Recycling Units 3 | . . . . 3 Scanalyzers . | . . . . . Garrison Access . | . . . . . Total Hacks 22 | . 9 1 . 12 Successful 14 | . 6 1 . 7 Failed 8 | . 3 . . 5 Catastrophic 2 | . . . . 2 Database Lockouts . | . . . . . Manual 6 | . 2 . . 4 Terminals 14 | . 9 . . 5 Fabricators . | . . . . . Repair Stations . | . . . . . Recycling Units 7 | . . . . 7 Scanalyzers . | . . . . . Garrison Access . | . . . . . Terminal Hacks 5 | . 4 1 . . Prototype ID Bank 2 | . 2 . . . Open Door 1 | . . 1 . . Locate Traps 2 | . 2 . . . Fabricator Hacks . | . . . . . Repair Station Hacks . | . . . . . Recycling Unit Hacks 3 | . . . . 3 Report Inventory 3 | . . . . 3 Scanalyzer . | . . . . . Garrison Access Hacks . | . . . . . Unauthorized Hacks 6 | . 2 . . 4 Terminals 3 | . 2 . . 1 Botnet 3 | . 2 . . 1 Fabricators . | . . . . . Repair Stations . | . . . . . Recycling Units 3 | . . . . 3 Tunnel 3 | . . . . 3 Scanalyzers . | . . . . . Garrison Access . | . . . . . Data Cores Recovered . | . . . . . Used . | . . . . . Hacking Detections 8 | . 3 . . 5 Full Trace Events 2 | . . . . 2 Feedback Events . | . . . . . Feedback Blocked . | . . . . . Robot Schematics Acquired . | . . . . . Robots Built . | . . . . . Authchips . | . . . . . Time . | . . . . . Total Robot Build Rating . | . . . . . Part Schematics Acquired . | . . . . . Parts Built . | . . . . . Authchips . | . . . . . Time . | . . . . . Total Part Build Rating . | . . . . . Parts Repaired . | . . . . . Time . | . . . . . Parts Recycled . | . . . . . Recycled Matter . | . . . . . Retrieved Matter . | . . . . . Retrieved Components . | . . . . . Parts Scanalyzed . | . . . . . Part Schematics Acquired . | . . . . . Parts Damaged . | . . . . . Bothacking | -11 -10 -10 -10 -7 ------------ Run | Yrd Mat Min Sub Rec Used RIF Installer . | . . . . . Robots Hacked . | . . . . . Non-combat . | . . . . . Combat . | . . . . . Robot Hacks Applied . | . . . . . Relay Couplers Released . | . . . . . Fabnet Peak Effective % . | . . . . . Robots Rewired . | . . . . . Allies Hacked . | . . . . . Hacks Repelled . | . . . . . Allies | -11 -10 -10 -10 -7 -------- Run | Yrd Mat Min Sub Rec Total Allies . | . . . . . Largest Group . | . . . . . Highest-Rated Group . | . . . . . Highest-Rated Ally . | . . . . . Total Orders . | . . . . . Ally Attacks . | . . . . . Total Damage . | . . . . . Kills . | . . . . . Allies Corrupted . | . . . . . Allies Melted . | . . . . . Intel | -11 -10 -10 -10 -7 ------- Run | Yrd Mat Min Sub Rec Robot Analysis Total . | . . . . . Derelict Logs Recovered 1 | . . 1 . . Drone Launches . | . . . . . Drone Recoveries . | . . . . . Exploration | -11 -10 -10 -10 -7 ------------- Run | Yrd Mat Min Sub Rec Turns Passed 2248 | 116 663 725 413 331 Spaces Moved 1261 | 60 335 383 230 253 Core 5 | 5 . . . . Treads 856 | 55 335 383 83 . Legs . | . . . . . Wheels 400 | . . . 147 253 Hover . | . . . . . Flight . | . . . . . Fastest Speed 50 | 50 160 160 107 105 Average Speed 145 | 150 160 160 135 111 Slowest Speed 240 | 160 160 160 240 130 Overloaded Moves . | . . . . . Propulsion Burnouts . | . . . . . Robots Hopped . | . . . . . Cave-ins Triggered . | . . . . . Exploration Rate (%) 38 | 6 41 71 20 56 Regions Visited 4 Branch Regions 3 Pre-discovered Areas 3 | . . . . 3 Known Exits Taken . | . . . . . Unknown Exits Taken 4 | 1 1 1 1 . Scrap Searched 5 | . . 1 4 . Spaces Dug 37 | . . 23 14 . Terrain Destroyed 242 | . 12 91 139 . Melee . | . . . . . Projectile 1 | . . . 1 . AOE 241 | . 12 91 138 . Terrain Rammed . | . . . . . Walls Destroyed . | . . . . . Machines Disabled . | . . . . . Actions | -11 -10 -10 -10 -7 --------- Run | Yrd Mat Min Sub Rec Total 1550 | 81 413 484 298 274 Wait 142 | 9 20 79 32 2 Move 1257 | 59 334 382 229 253 Hop . | . . . . . Pick Up 30 | 6 14 5 4 1 Fast Attach 9 | 6 . 1 2 . Attach 6 | . 2 . 3 1 Detach . | . . . . . Swap 21 | . 5 3 10 3 Drop 15 | . 11 2 1 1 Fire 66 | 1 27 8 17 13 Melee . | . . . . . Ram . | . . . . . Kick . | . . . . . Crush 4 | . . 4 . . Escape Stasis . | . . . . . Rewire . | . . . . . Trap . | . . . . . Miscellaneous . | . . . . . Route ------- -11/Scrapyard -10/Materials (discovered 2 exits: *Min x2) -10/Mines -10/Subcaves -7/Recycling History --------- Turn | Location | Event 2 | -11/Scrapyard | Met Revision 17 8 | -11/Scrapyard | Discovered new exit (range 16) 117 | -11/Scrapyard | Entered Materials 262 | -10/Materials | Discovered new exit (range 10) 317 | -10/Materials | Build established: Mutant 493 | -10/Materials | Discovered new exit (range 7) 780 | -10/Materials | Entered Mines 814 | -10/Mines | Learned 2 Materials zone layouts 1120 | -10/Mines | Met a Derelict who couldn't figure out how to use a Trap Extractor 1391 | -10/Mines | Found a damaged Exp. Sensor Array with a note attached 1392 | -10/Mines | Assembled infested the area 1394 | -10/Mines | Found Prototype Device 1397 | -10/Mines | Assisted by a Guerilla fighting off Assembled 1488 | -10/Mines | Discovered new exit (range 9) 1505 | -10/Mines | Entered Subcaves 1646 | -10/Subcaves | Core integrity fell below 50% 1662 | -10/Subcaves | Identified Exp. Sensor Array 1678 | -10/Subcaves | Disturbed a concealed Subdweller 1717 | -10/Subcaves | Lost 6 parts (1n2u3w) 1872 | -10/Subcaves | Core integrity fell below 20% 1899 | -10/Subcaves | Discovered new exit (range 13) 1918 | -10/Subcaves | Entered Recycling 2249 | -7/Recycling | Destroyed by Y-54 Guardian with Flak Gun Last Messages --------------- 02034_ R-06 Scavenger collects Com. Wheel. 02039_ R-06 Scavenger collects Sml. Storage Unit. 02052_ Connecting with Recycling Unit... >>Recycling(Report) Matter reserves: 0 Inventory: Empty >>Force(Tunnel) DISCOVERED[-8/Materials] 02192_ Connecting with Recycling Unit... >>Recycling(Report) Matter reserves: 0 Inventory: Empty >>Force(Tunnel) DISCOVERED[-5/Factory] 02198_ Sub. Monowheel shoots sparks and powers down. 02225_ R-06 Scavenger sends out distress signal. 02239_ Y-54 Guardian suffers critical hit (Burn). Map ----- +----------------------------------------------------+ | # # ####### #????????????? | | # + + + #????????????? | | # # # # #????????????? | | # #######+###### #######+######????????????? | | # #????????????????? | | !# ####+############## #"Y"# #?########???????? | | !# # #???# #"""# # ! #???????? | | ! # + #????# ##### # #???????? | | ### # #????# #???# +! ! #???????? | | ??? # #????# #???# # #???????? | | ??? ##############????# #???# # ! %#???????? | | ### #?????????????????# #???# #? #???????? | | #?????????????????# #???# #?! #???????? | | ## #?????????????????# #???# #?? #???????? | | ??????????????????????# #???# #?? #???????? | | ??????????????????????# #???# #???######???????? | | ??????????????????????# #??? #????????????????? | | ????????????????#######+##### #????????????????? | | ????????????????# # #????????????????? | | ????????????????# # T????????????????? | | ????????????????# """ """ # #????????????????? | | ????????????????# """ """ # ?????????????????? | | ????????????????# """ """ # ?????????????????? | | ????????????????# """ """ #????????????????????? | | ????????????????# # # """????????????? | | ????????????????# @ Y/ r """????????????? | | ????????????????# # # ????????? | | ????????????????# #? #????????????????? | | ?????????????? + #?? ?????????????????? | | ?????????????#### ""T"" #????????????????????? | | ????????????????# """"" #????????????????????? | | ????????????????#############????????????????????? | | ?????????????????????????????????????????????????? | | ?????????????????????????????????????????????????? | | ?????????????????????????????????????????????????? | | ?????????????????????????????????????????????????? | | ?????????????????????????????????????????????????? | | ?????????????????????????????????????????????????? | | ?????????????????????????????????????????????????? | | ?????????????????????????????????????????????????? | | ?????????????????????????????????????????????????? | | ?????????????????????????????????????????????????? | | ?????????????????????????????????????????????????? | | ?????????????????????????????????????????????????? | | ?????????????????????????????????????????????????? | | ?????????????????????????????????????????????????? | | ?????????????????????????????????????????????????? | | ?????????????????????????????????????????????????? | | ?????????????????????????????????????????????????? | | ?????????????????????????????????????????????????? | +----------------------------------------------------+ Best States ------------- Heat Dissipation 39 Energy Generation 18 Energy Capacity 250 Matter Stores 300 Matter Capacity 300 Sight Range 16 Robot Scan Range 20 Terrain Scan Density 10 Weapon Shielding 33 Evasion (%) 40 Recoil Reduction 2 Item Schematics ----------------- None Robot Schematics ------------------ None Fabricated ------------ Nothing Alien Tech Used ----------------- None Achievements -------------- None Challenges ------------ None Game ------ Seed ComponentRecyclingOptics Manual? 0 Play Time 00:18:10 Cumulative 121.8 hours Start 2024.11.24 @ 20:50:30 End 2024.11.24 @ 21:08:28 Sessions 1 Manual Loads 0 Difficulty Rogue Special Mode None Game No. 67 Rogue 67 Adventurer 0 Explorer 0 Win Type - Total 2 Types 2/0/0/0/0/0/0/0/0 Lore% 43 Gallery% 62 Achievement% 54 Wizard Run 0 Options --------- Layout 1 ASCII 0 Keyboard 0 Movement Mouse Keybinds 0 Fullscreen 1 Font 24/Smallcaps Map View 50x35 Zoom Use 3% Tactical HUD 1 Map Filters NONE Filters NONE Steam 1 RUN: 11233306-20d9-48a6-94f7-069df87e7957